[Event "FIN-ch Women 2018"]
[Site "Helsinki"]
[Date "2018.06.17"]
[Round "7"]
[White "Turunen, Tiina"]
[Black "Walta, Paivi"]
[Result "1-0"]
[ECO "A41"]
[WhiteElo "1665"]
[BlackElo "1634"]
[Annotator "NA"]
[PlyCount "103"]
[EventDate "2018.06.13"]
[EventType "tourn"]
[EventCountry "FIN"]
[SourceTitle "playchess.com"]
[Source "ChessBase"]
[SourceQuality "1"]
[TimeControl "40/5400+30:1800+30"]

1. d4 {[%emt 0:00:00]} d6 {[%emt 0:00:19]} 2. Nf3 {[%emt 0:00:17]} Nf6 {[%emt 0:00:48]} 3. h3 {[%emt 0:01:13]} g6 {[%emt 0:00:23]} 4. Bf4 {[%emt 0:00:37]} Bg7 {[%emt 0:00:55]} 5. e3 {[%emt 0:00:33]} O-O {[%emt 0:04:43]} 6. Bd3 {[%emt 0:00:52]} Nfd7 {[%emt 0:02:48]} 7. e4 {[%emt 0:06:04]} e5 {[%emt 0:00:19]} 8. Be3 {[%emt 0:00:29]} Nc6 {[%emt 0:03:38]} 9. c3 {[%emt 0:02:33]} Ne7 {[%emt 0:02:40]} 10. Na3 {[%emt 0:05:16]} a6 {[%emt 0:01:36]} 11. Nc2 {[%emt 0:01:07]} b5 {[%emt 0:00:40]} 12. Nd2 {[%emt 0:01:36]} Nb6 {[%emt 0:04:50]} 13. d5 {[%emt 0:01:26]} f5 {[%emt 0:01:16]} 14. Bxb6 {[%emt 0:02:48]} cxb6 {[%emt 0:00:07]} 15. O-O {[%emt 0:00:41]} Bb7 {[%emt 0:01:27]} 16. f3 {[%emt 0:00:19]} Kh8 {[%emt 0:16:24]} 17. Qe2 {[%emt 0:03:37]} g5 {[%emt 0:02:56]} 18. a4 {[%emt 0:03:24]} bxa4 {[%emt 0:03:01]} 19. Rxa4 {[%emt 0:00:20]} b5 {[%emt 0:00:21]} 20. Rb4 {[%emt 0:00:37]} Ng6 {[%emt 0:01:46]} 21. g3 {[%emt 0:01:03]} Bc8 {[%emt 0:02:31]} 22. Kh2 {[%emt 0:01:19]} Bd7 {[%emt 0:02:01]} 23. exf5 {[%emt 0:01:35]} Bxf5 {[%emt 0:02:37]} 24. Bxf5 {[%emt 0:00:24]} Rxf5 {[%emt 0:00:06]} 25. Ne3 {[%emt 0:01:44]} Rf7 {[%emt 0:00:18]} 26. Ne4 {[%emt 0:00:44]} Qe7 {[%emt 0:03:23]} 27. c4 {[%emt 0:02:08]} h6 {[%emt 0:07:38]} 28. cxb5 {[%emt 0:00:59]} Rb8 {[%emt 0:01:49]} 29. b6 {[%emt 0:00:43]} Qd8 {[%emt 0:00:37]} 30. Qxa6 {[%emt 0:00:56]} Rfb7 {[%emt 0:02:41]} 31. Nc4 {[%emt 0:00:45]} Bf8 {[%emt 0:01:05]} 32. Qb5 {[%emt 0:01:23]} Rc8 {[%emt 0:00:59]} 33. b3 {[%emt 0:00:41]} Be7 {[%emt 0:01:26]} 34. Ra1 {[%emt 0:00:58]} h5 {[%emt 0:05:08]} 35. Ra7 {[%emt 0:03:35]} Rcb8 {[%emt 0:01:23]} 36. Rxb7 {[%emt 0:00:26]} Rxb7 {[%emt 0:00:06]} 37. Na5 {[%emt 0:00:15]} h4 {[%emt 0:11:04]} 38. Nxb7 {[%emt 0:00:25]} hxg3+ {[%emt 0:00:09]} 39. Nxg3 {[%emt 0:01:32]} Qc8 {[%emt 0:00:42]} 40. Qc6 {[%emt 0:00:00]} Qf8 {[%emt 0:00:44]} 41. Qc3 {[%emt 0:03:22]} Nh4 {[%emt 0:00:31]} 42. Rxh4+ {[%emt 0:01:08]} gxh4 {[%emt 0:00:11]} 43. Ne2 {[%emt 0:02:01]} Bg5 {[%emt 0:04:41]} 44. Qd3 {[%emt 0:02:22]} Be7 {[%emt 0:03:55]} 45. Na5 {[%emt 0:01:31]} Bd8 {[%emt 0:01:14]} 46. Qe3 {[%emt 0:00:18]} Bxb6 {[%emt 0:11:04]} 47. Qxb6 {[%emt 0:00:35]} Qxf3 {[%emt 0:00:08]} 48. Qd8+ {[%emt 0:00:32]} Kg7 {[%emt 0:00:12]} 49. Qg5+ {[%emt 0:00:20]} Kf7 {[%emt 0:00:18]} 50. Qg2 {[%emt 0:00:27]} e4 {[%emt 0:00:27]} 51. Qxf3+ {[%emt 0:00:28]} exf3 {[%emt 0:00:11]} 52. Nd4 {[%emt 0:00:38]} 1-0

[Event "FIN-ch Women 2018"]
[Site "Helsinki"]
[Date "2018.06.17"]
[Round "7"]
[White "Ristoja, Aulikki"]
[Black "Norlamo, Sarabella"]
[Result "0-1"]
[ECO "A45"]
[WhiteElo "1565"]
[BlackElo "1847"]
[Annotator "NA"]
[PlyCount "90"]
[EventDate "2018.06.13"]
[EventType "tourn"]
[EventCountry "FIN"]
[SourceTitle "playchess.com"]
[Source "ChessBase"]
[SourceQuality "1"]
[TimeControl "40/5400+30:1800+30"]

1. d4 {[%emt 0:03:06]} Nf6 {[%emt 0:00:06]} 2. Nc3 {[%emt 0:00:28]} d5 {[%emt 0:00:07]} 3. Bf4 {[%emt 0:01:51]} e6 {[%emt 0:00:37]} 4. Nb5 {[%emt 0:03:05]} Bb4+ {[%emt 0:02:30] LiveBook: 7 Partien} 5. c3 {[%emt 0:00:23]} Ba5 {[%emt 0:04:05]} 6. e3 {[%emt 0:02:04]} a6 {[%emt 0:02:25]} 7. Na3 {[%emt 0:00:53]} c6 {[%emt 0:02:27]} 8. Bd3 {[%emt 0:03:21]} Qe7 {[%emt 0:02:01]} 9. Nc2 {[%emt 0:01:34]} Bc7 {[%emt 0:10:36]} 10. Nf3 {[%emt 0:03:36]} Bxf4 {[%emt 0:05:59]} 11. exf4 {[%emt 0:00:03]} c5 {[%emt 0:00:08]} 12. dxc5 {[%emt 0:01:50]} Qxc5 $14 {[%emt 0:00:44]} 13. Ne5 {[%emt 0:02:47]} Nc6 {[%emt 0:07:41]} 14. O-O {[%emt 0:00:38]} Qb6 {[%emt 0:01:53]} 15. Rb1 {[%emt 0:00:31]} O-O {[%emt 0:00:39]} 16. Nd4 {[%emt 0:03:51]} Nxd4 {[%emt 0:03:21]} 17. cxd4 {[%emt 0:00:04]} Bd7 {[%emt 0:01:40]} 18. Bc2 {[%emt 0:03:24]} Rac8 {[%emt 0:01:01]} 19. Nf3 {[%emt 0:04:38]} Qc7 {[%emt 0:02:35]} 20. Rc1 {[%emt 0:01:46]} Qxf4 {[%emt 0:00:48]} 21. g3 {[%emt 0:00:46]} Qd6 {[%emt 0:06:27]} 22. Re1 {[%emt 0:00:10]} Rc7 {[%emt 0:01:44]} 23. Bb1 {[%emt 0:01:19]} Rxc1 {[%emt 0:00:45]} 24. Qxc1 {[%emt 0:00:03]} Rc8 {[%emt 0:00:45]} 25. Qd2 {[%emt 0:00:07]} Bc6 {[%emt 0:04:50]} 26. h3 {[%emt 0:00:40]} Ne4 {[%emt 0:03:08]} 27. Bxe4 {[%emt 0:00:03]} dxe4 {[%emt 0:00:11]} 28. Ne5 {[%emt 0:00:22]} Bd5 {[%emt 0:02:53]} 29. b3 {[%emt 0:00:22]} Qc7 {[%emt 0:01:49]} 30. Qf4 {[%emt 0:00:31]} f6 {[%emt 0:00:41]} 31. Nc4 {[%emt 0:00:09]} Qxf4 {[%emt 0:05:00]} 32. gxf4 {[%emt 0:00:02]} Bxc4 {[%emt 0:06:34]} 33. bxc4 {[%emt 0:00:02]} Rxc4 {[%emt 0:00:09]} 34. Rxe4 {[%emt 0:00:06]} Kf7 {[%emt 0:00:14]} 35. Re3 {[%emt 0:01:04]} Rxd4 {[%emt 0:00:20]} 36. Rb3 {[%emt 0:00:10]} b5 {[%emt 0:01:46]} 37. Rc3 {[%emt 0:00:02]} Rxf4 {[%emt 0:00:47]} 38. Rc7+ {[%emt 0:00:10]} Kg6 {[%emt 0:00:16]} 39. Rc6 {[%emt 0:00:12]} Ra4 {[%emt 0:00:34]} 40. Rxe6 {[%emt 0:00:00]} Rxa2 {[%emt 0:00:11]} 41. Kg2 {[%emt 0:00:15]} a5 {[%emt 0:00:32]} 42. Rc6 {[%emt 0:01:09]} a4 {[%emt 0:01:13]} 43. Rc5 {[%emt 0:09:09]} b4 {[%emt 0:00:23]} 44. h4 {[%emt 0:00:42]} b3 {[%emt 0:01:51]} 45. h5+ {[%emt 0:00:16]} Kh6 {[%emt 0:00:07]} 0-1

[Event "FIN-ch Women 2018"]
[Site "Helsinki"]
[Date "2018.06.18"]
[Round "8"]
[White "Norlamo, Sarabella"]
[Black "Al Najar, Huda"]
[Result "0-1"]
[ECO "A46"]
[WhiteElo "1847"]
[BlackElo "1719"]
[Annotator "NA"]
[PlyCount "192"]
[EventDate "2018.06.13"]
[EventType "tourn"]
[EventCountry "FIN"]
[SourceTitle "playchess.com"]
[Source "ChessBase"]
[SourceQuality "1"]
[TimeControl "40/5400+30:1800+30"]

1. d4 {[%emt 0:00:00]} Nf6 {[%emt 0:00:11]} 2. Nf3 {[%emt 0:00:00]} e6 {[%emt 0:00:14]} 3. e3 {[%emt 0:00:00]} b6 {[%emt 0:00:06]} 4. Bd3 {[%emt 0:01:59]} Bb7 {[%emt 0:00:07]} 5. O-O {[%emt 0:00:15]} Be7 {[%emt 0:00:56]} 6. Nbd2 {[%emt 0:04:11]} d5 {[%emt 0:01:10]} 7. Ne5 {[%emt 0:05:06]} O-O {[%emt 0:01:20]} 8. f4 {[%emt 0:02:48]} Nbd7 {[%emt 0:00:59]} 9. Rf3 {[%emt 0:05:09]} Ne4 {[%emt 0:02:12]} 10. Rh3 {[%emt 0:03:44]} f5 {[%emt 0:07:32]} 11. Qh5 {[%emt 0:10:16]} Ndf6 {[%emt 0:02:22]} 12. Qh4 {[%emt 0:00:14]} Qe8 {[%emt 0:03:36]} 13. Ndf3 {[%emt 0:08:31]} h6 {[%emt 0:01:10]} 14. Qe1 {[%emt 0:00:41]} Ng4 {[%emt 0:00:37]} 15. Bxe4 {[%emt 0:02:42]} dxe4 {[%emt 0:00:16]} 16. Nd2 {[%emt 0:03:11]} c5 {[%emt 0:08:59]} 17. Qe2 {[%emt 0:05:23]} Nf6 {[%emt 0:02:21]} (17... h5 $17 18. Ndc4 Rd8 19. dxc5 Ba6) 18. Rg3 {[%emt 0:05:23]} cxd4 {[%emt 0:02:51]} 19. exd4 {[%emt 0:01:02]} Nh5 {[%emt 0:01:57]} 20. Rb3 $2 {[%emt 0:04:52]} (20. Nf1) 20... Nxf4 {[%emt 0:00:53]} 21. Qf2 $19 {[%emt 0:00:33]} Ng6 {[%emt 0:01:12]} 22. Nxg6 {[%emt 0:00:40]} Qxg6 {[%emt 0:00:41]} 23. Nc4 {[%emt 0:01:58]} Rad8 {[%emt 0:06:21]} 24. Rg3 {[%emt 0:06:37]} Qf6 {[%emt 0:05:32]} 25. Bf4 {[%emt 0:04:17]} g5 {[%emt 0:05:59]} 26. Be5 {[%emt 0:01:16]} Qf7 {[%emt 0:03:34]} 27. Rh3 {[%emt 0:05:34]} Qg6 {[%emt 0:03:13]} 28. Qe2 {[%emt 0:08:15]} g4 {[%emt 0:02:35]} 29. Rg3 {[%emt 0:00:06]} Bd5 {[%emt 0:04:58]} 30. Ne3 {[%emt 0:01:48]} Bh4 {[%emt 0:01:44]} 31. Nxd5 {[%emt 0:00:11]} Rxd5 {[%emt 0:00:54]} 32. Rc3 {[%emt 0:03:00]} Bf6 {[%emt 0:03:04]} 33. Rc7 {[%emt 0:01:22]} Bxe5 {[%emt 0:01:36]} 34. dxe5 {[%emt 0:00:02]} Rf7 {[%emt 0:00:57]} 35. Qc4 {[%emt 0:01:49]} Rxc7 {[%emt 0:00:49]} 36. Qxc7 {[%emt 0:00:03]} Qf7 {[%emt 0:00:16]} 37. Qc3 {[%emt 0:01:11]} Qd7 {[%emt 0:03:58]} 38. Re1 {[%emt 0:03:01]} Kh7 {[%emt 0:01:40]} 39. Kf2 {[%emt 0:00:57]} Qg7 {[%emt 0:00:17]} 40. Qc8 {[%emt 0:00:00]} Qe7 {[%emt 0:04:09]} 41. Kg3 {[%emt 0:04:13]} Rd8 {[%emt 0:01:34]} 42. Qc3 {[%emt 0:02:25]} Kg6 {[%emt 0:04:41]} 43. Re2 {[%emt 0:02:05]} h5 {[%emt 0:00:52]} 44. a3 {[%emt 0:13:45]} h4+ {[%emt 0:01:08]} 45. Kf2 {[%emt 0:00:10]} Rd5 {[%emt 0:01:21]} 46. Ke1 {[%emt 0:01:36]} Qc5 {[%emt 0:00:39]} 47. Qxc5 {[%emt 0:01:23]} Rxc5 {[%emt 0:00:19]} 48. Rd2 {[%emt 0:00:07]} Rd5 {[%emt 0:03:02]} 49. c4 {[%emt 0:00:59]} Rxe5 {[%emt 0:02:06]} 50. Rd8 {[%emt 0:01:47]} Rc5 {[%emt 0:07:32]} 51. b3 {[%emt 0:01:29]} Rc7 {[%emt 0:00:23]} 52. Re8 {[%emt 0:00:43]} Kf6 {[%emt 0:00:52]} 53. Rh8 {[%emt 0:01:44]} h3 {[%emt 0:01:53]} 54. gxh3 {[%emt 0:00:07]} gxh3 {[%emt 0:00:22]} 55. Rxh3 {[%emt 0:00:07]} Rg7 {[%emt 0:00:21]} 56. Kf2 {[%emt 0:01:08]} f4 {[%emt 0:00:45]} 57. Rh4 {[%emt 0:01:58]} Ke5 {[%emt 0:01:41]} 58. Rh5+ {[%emt 0:01:04]} Kd4 {[%emt 0:01:13]} 59. h4 {[%emt 0:01:27]} e5 {[%emt 0:01:18]} 60. Rg5 {[%emt 0:00:55]} Re7 {[%emt 0:02:36]} 61. h5 {[%emt 0:00:24]} e3+ {[%emt 0:00:59]} 62. Ke2 {[%emt 0:00:59]} e4 {[%emt 0:00:53]} 63. Rd5+ {[%emt 0:00:28]} Kc3 {[%emt 0:00:04]} 64. Rf5 {[%emt 0:00:08]} f3+ {[%emt 0:02:58]} 65. Kxe3 {[%emt 0:00:02]} Kxb3 {[%emt 0:00:17]} 66. h6 {[%emt 0:01:35]} Kxc4 {[%emt 0:00:18]} 67. Rg5 {[%emt 0:01:00]} Rh7 {[%emt 0:01:34]} 68. Rg4 {[%emt 0:01:10]} Kb3 {[%emt 0:02:33]} 69. Rxe4 {[%emt 0:00:47]} Rxh6 {[%emt 0:00:09]} 70. a4 {[%emt 0:00:24]} Rf6 {[%emt 0:00:16]} 71. Kf2 {[%emt 0:00:16]} a5 {[%emt 0:00:52]} 72. Rd4 {[%emt 0:00:21]} Kc3 {[%emt 0:00:20]} 73. Re4 {[%emt 0:00:29]} Kd3 {[%emt 0:00:51]} 74. Rg4 {[%emt 0:00:26]} Kc3 {[%emt 0:02:13]} 75. Re4 {[%emt 0:00:11]} Kb3 {[%emt 0:00:43]} 76. Rd4 {[%emt 0:00:21]} Rf5 {[%emt 0:01:01]} 77. Re4 {[%emt 0:00:37]} b5 {[%emt 0:00:41]} 78. axb5 {[%emt 0:00:19]} Rxb5 {[%emt 0:00:12]} 79. Kxf3 {[%emt 0:00:11]} a4 {[%emt 0:00:23]} 80. Re3+ {[%emt 0:00:33]} Ka2 {[%emt 0:00:16]} 81. Re2+ {[%emt 0:00:12]} Rb2 {[%emt 0:00:42]} 82. Re8 {[%emt 0:01:41]} a3 {[%emt 0:00:35]} 83. Kg4 {[%emt 0:00:45]} Rc2 {[%emt 0:01:18]} 84. Rb8 {[%emt 0:00:24]} Rc3 {[%emt 0:01:29]} 85. Kg5 {[%emt 0:00:30]} Rb3 {[%emt 0:00:20]} 86. Rh8 {[%emt 0:00:22]} Ka1 {[%emt 0:00:22]} 87. Rh1+ {[%emt 0:00:20]} Rb1 {[%emt 0:00:27]} 88. Rh2 {[%emt 0:00:16]} Rg1+ {[%emt 0:01:26]} 89. Kf4 {[%emt 0:00:58]} Kb1 {[%emt 0:00:09]} 90. Rh8 {[%emt 0:00:24]} a2 {[%emt 0:00:59]} 91. Rb8+ {[%emt 0:00:12]} Kc2 {[%emt 0:00:29]} 92. Rc8+ {[%emt 0:00:11]} Kd3 {[%emt 0:00:38]} 93. Rd8+ {[%emt 0:00:12]} Kc4 {[%emt 0:00:27]} 94. Rc8+ {[%emt 0:00:16]} Kb5 {[%emt 0:00:08]} 95. Rb8+ {[%emt 0:00:16]} Kc6 {[%emt 0:00:02]} 96. Rc8+ {[%emt 0:01:10]} Kb7 {[%emt 0:00:02]} 0-1

[Event "FIN-ch Women 2018"]
[Site "Helsinki"]
[Date "2018.06.18"]
[Round "8"]
[White "Turunen, Tiina"]
[Black "Nazarova, Anastasia"]
[Result "0-1"]
[ECO "D00"]
[WhiteElo "1665"]
[BlackElo "2137"]
[Annotator "NA"]
[PlyCount "82"]
[EventDate "2018.06.13"]
[EventType "tourn"]
[EventCountry "FIN"]
[SourceTitle "playchess.com"]
[Source "ChessBase"]
[SourceQuality "1"]
[TimeControl "40/5400+30:1800+30"]

1. d4 {[%emt 0:00:00]} d5 {[%emt 0:00:04]} 2. Bf4 {[%emt 0:00:00]} Nf6 {[%emt 0:00:05]} 3. h3 {[%emt 0:00:00]} c5 {[%emt 0:00:33] D00: 1 d4 d5: Unusual lines} 4. e3 {[%emt 0:00:57]} Nc6 {[%emt 0:00:27]} 5. c3 {[%emt 0:00:13]} Qb6 {[%emt 0:00:36]} 6. Qc2 {[%emt 0:03:15]} (6. Qb3 c4 7. Qc2 Bf5 8. Qc1 Nd7 9. Nf3 f6 10. Nbd2 e5 11. Bh2 exd4 12. exd4 Kf7 13. Nxc4 dxc4 14. Bxc4+ {1-0 (72) Lewtak,D (2358)-Leniart,A (2502) Bialystok 2017}) 6... cxd4 {[%emt 0:00:56]} 7. exd4 {[%emt 0:00:39]} Bf5 {[%emt 0:01:56]} 8. Qb3 {[%emt 0:01:40]} e6 $146 {[%emt 0:01:29]} ({Predecessor:} 8... Qxb3 9. axb3 Nd7 10. Nf3 f6 11. Bb5 g5 12. Bc7 h5 13. Nbd2 Bg7 {0-1 (60) Suslov,V-Kuznetsov,Y (2254) Novosibirsk 2001}) 9. Qxb6 {[%emt 0:00:35]} axb6 {[%emt 0:00:08]} 10. Nd2 {[%emt 0:00:47]} Kd7 {[%emt 0:02:02]} 11. Bb5 {[%emt 0:00:33]} Ra5 {[%emt 0:00:59]} 12. a4 {[%emt 0:00:40]} Bd6 {[%emt 0:00:27]} 13. Bxd6 {[%emt 0:00:40]} Kxd6 {[%emt 0:00:05]} 14. Ngf3 {[%emt 0:00:22]} Ne8 {[%emt 0:12:25]} 15. O-O {[%emt 0:00:55]} Nc7 {[%emt 0:00:08]} 16. Be2 {[%emt 0:03:26]} Rha8 {[%emt 0:00:41]} 17. b3 {[%emt 0:02:28]} b5 $1 {[%emt 0:01:10]} 18. Bd1 {[%emt 0:00:39]} ({Lieber} 18. Ra2 $15) 18... bxa4 {[%emt 0:04:29]} 19. bxa4 {[%emt 0:03:43]} b5 {[%emt 0:02:31]} 20. Ra3 {[%emt 0:02:12]} Bd3 {[%emt 0:04:26]} ({Much less strong is} 20... bxa4 21. c4 $17) 21. Re1 {[%emt 0:00:14]} bxa4 {[%emt 0:00:11]} 22. Re3 {[%emt 0:01:18]} Bg6 {[%emt 0:08:19]} 23. c4 {[%emt 0:03:32]} Ke7 {[%emt 0:02:31]} 24. Be2 {[%emt 0:05:18]} Rb8 {[%emt 0:05:35]} 25. Rec3 {[%emt 0:02:15]} Kd7 {[%emt 0:12:40]} 26. Rc1 $17 {[%emt 0:04:40]} f6 {[%emt 0:00:50]} 27. Bd1 {[%emt 0:00:46]} Rb4 {[%emt 0:05:35]} 28. Rca1 {[%emt 0:06:25]} dxc4 {[%emt 0:02:10]} 29. Bxa4 {[%emt 0:00:29]} Nb5 {[%emt 0:01:28]} 30. Bxb5 {[%emt 0:02:08]} Raxb5 {[%emt 0:00:08]} 31. Rc3 {[%emt 0:00:20]} Bd3 {[%emt 0:01:44]} 32. Rac1 {[%emt 0:00:35]} Na5 {[%emt 0:05:20]} 33. Ne1 {[%emt 0:00:48]} Rb2 {[%emt 0:03:23]} 34. Nef3 {[%emt 0:04:23]} Ra2 {[%emt 0:01:48]} 35. Nxc4 {[%emt 0:04:10]} Bxc4 {[%emt 0:00:45]} 36. Rxc4 {[%emt 0:01:06]} Nxc4 {[%emt 0:00:07]} 37. Rxc4 {[%emt 0:00:12]} Rb1+ {[%emt 0:00:09]} 38. Kh2 {[%emt 0:00:17]} Rxf2 {[%emt 0:00:09]} 39. Rc3 {[%emt 0:03:03]} Rbb2 {[%emt 0:00:28]} 40. Ne1 {[%emt 0:00:00]} Rfe2 {[%emt 0:02:38]} 41. Rc1 {[%emt 0:01:09]} Rbd2 {[%emt 0:00:21]} 0-1

[Event "FIN-ch Women 2018"]
[Site "Helsinki"]
[Date "2018.06.18"]
[Round "8"]
[White "Walta, Paivi"]
[Black "Pelander, Pauliina"]
[Result "0-1"]
[ECO "B22"]
[WhiteElo "1634"]
[BlackElo "1610"]
[Annotator "NA"]
[PlyCount "113"]
[EventDate "2018.06.13"]
[EventType "tourn"]
[EventCountry "FIN"]
[SourceTitle "playchess.com"]
[Source "ChessBase"]
[SourceQuality "1"]
[TimeControl "40/5400+30:1800+30"]

1. e4 {[%emt 0:00:00]} c5 {[%emt 0:13:14]} 2. c3 {[%emt 0:00:00]} d5 {[%emt 0:00:59]} 3. exd5 {[%emt 0:00:00]} Qxd5 {[%emt 0:00:11]} 4. d4 {[%emt 0:00:00]} Nc6 {[%emt 0:01:49]} 5. Nf3 {[%emt 0:00:21]} Bg4 {[%emt 0:01:42]} 6. Be2 {[%emt 0:00:08]} cxd4 {[%emt 0:04:06]} 7. cxd4 {[%emt 0:00:22]} Nf6 {[%emt 0:04:30]} 8. Nc3 {[%emt 0:00:47]} Qd7 {[%emt 0:11:08]} 9. O-O {[%emt 0:01:14]} Bxf3 {[%emt 0:02:54]} 10. Bxf3 {[%emt 0:00:14]} Nxd4 {[%emt 0:00:27]} 11. Bxb7 {[%emt 0:04:01]} Qxb7 {[%emt 0:02:28]} 12. Qxd4 {[%emt 0:00:06]} e6 {[%emt 0:00:20]} 13. Rd1 {[%emt 0:03:19]} Be7 {[%emt 0:00:53]} 14. Qa4+ {[%emt 0:00:56]} Nd7 {[%emt 0:02:19]} 15. Be3 {[%emt 0:07:46]} f5 {[%emt 0:03:35]} 16. Rd3 {[%emt 0:02:54]} a6 {[%emt 0:02:49]} 17. Rad1 {[%emt 0:00:26]} O-O-O {[%emt 0:00:24]} 18. Qc4+ {[%emt 0:06:22]} Kb8 {[%emt 0:00:49]} 19. Qxe6 {[%emt 0:00:39]} Nf6 {[%emt 0:02:33]} 20. Bd4 {[%emt 0:07:31]} Ka8 {[%emt 0:14:00]} 21. Na4 {[%emt 0:02:16]} Rd6 {[%emt 0:04:22]} 22. Qxf5 {[%emt 0:00:23]} Rf8 {[%emt 0:05:25]} 23. Rb3 {[%emt 0:06:25]} Nd5 {[%emt 0:04:48]} 24. Qxh7 {[%emt 0:02:56]} Qc6 {[%emt 0:01:38]} 25. Nc5 {[%emt 0:06:00]} Nf4 {[%emt 0:00:44]} 26. Qe4 {[%emt 0:00:28]} Qxe4 {[%emt 0:00:35]} 27. Nxe4 {[%emt 0:00:14]} Rxd4 {[%emt 0:00:24]} 28. Rxd4 {[%emt 0:01:08]} Ne2+ {[%emt 0:00:03]} 29. Kf1 {[%emt 0:00:07]} Nxd4 {[%emt 0:00:05]} 30. Rd3 {[%emt 0:01:27]} Nc6 {[%emt 0:00:22]} 31. a3 {[%emt 0:00:43]} Ne5 {[%emt 0:00:40]} 32. Rd2 {[%emt 0:00:20]} Nc4 {[%emt 0:00:21]} 33. Re2 {[%emt 0:00:15]} Bd8 {[%emt 0:00:32]} 34. g3 {[%emt 0:02:11]} Ka7 {[%emt 0:00:57]} 35. Kg2 {[%emt 0:00:40]} g5 {[%emt 0:00:20]} 36. h3 {[%emt 0:01:11]} a5 {[%emt 0:02:59]} 37. a4 {[%emt 0:00:30]} Rf5 {[%emt 0:02:57]} 38. b3 {[%emt 0:00:45]} Nb6 {[%emt 0:00:41]} 39. Nd6 {[%emt 0:01:07]} Rd5 {[%emt 0:00:46]} 40. Nb5+ {[%emt 0:00:00]} Kb7 {[%emt 0:00:12]} 41. Re3 {[%emt 0:02:01]} Nd7 {[%emt 0:00:50]} 42. f4 {[%emt 0:05:50]} Bb6 {[%emt 0:02:38]} 43. Rc3 {[%emt 0:01:21]} gxf4 {[%emt 0:00:55]} 44. gxf4 {[%emt 0:00:18]} Nf6 {[%emt 0:00:28]} 45. Kf3 {[%emt 0:00:28]} Rd2 {[%emt 0:00:28]} 46. Kg3 {[%emt 0:03:19]} Ne4+ {[%emt 0:00:10]} 47. Kg4 {[%emt 0:00:24]} Nxc3 {[%emt 0:00:22]} 48. Nxc3 {[%emt 0:00:07]} Rd3 {[%emt 0:00:38]} 49. Nb5 {[%emt 0:00:38]} Kc6 {[%emt 0:00:48]} 50. h4 {[%emt 0:00:25]} Rxb3 {[%emt 0:00:09]} 51. h5 {[%emt 0:00:18]} Rxb5 {[%emt 0:04:46]} 52. axb5+ {[%emt 0:00:09]} Kxb5 {[%emt 0:00:07]} 53. f5 {[%emt 0:00:33]} Bd4 {[%emt 0:01:28]} 54. Kg5 {[%emt 0:00:26]} a4 {[%emt 0:00:32]} 55. f6 {[%emt 0:00:09]} Bxf6+ {[%emt 0:00:38]} 56. Kxf6 {[%emt 0:00:18]} a3 {[%emt 0:00:08]} 57. Ke5 0-1

[Event "FIN-ch Women 2018"]
[Site "Helsinki"]
[Date "2018.06.18"]
[Round "8"]
[White "Al Argha, Fatima"]
[Black "Dannenberg, Alia"]
[Result "0-1"]
[ECO "A40"]
[WhiteElo "1436"]
[BlackElo "1934"]
[Annotator "NA"]
[PlyCount "76"]
[EventDate "2018.06.13"]
[EventType "tourn"]
[EventCountry "FIN"]
[SourceTitle "playchess.com"]
[Source "ChessBase"]
[SourceQuality "1"]
[TimeControl "40/5400+30:1800+30"]

1. d4 {[%emt 0:00:00]} g6 {[%emt 0:00:01]} 2. Bf4 {[%emt 0:00:01]} Bg7 {[%emt 0:00:02]} 3. e3 {[%emt 0:00:23]} d6 {[%emt 0:00:03]} 4. Nf3 {[%emt 0:00:50]} Nf6 {[%emt 0:00:06]} 5. h3 {[%emt 0:00:18]} Nbd7 {[%emt 0:00:23]} 6. Nbd2 {[%emt 0:00:21]} c5 {[%emt 0:01:07]} 7. c3 O-O {[%emt 0:00:55]} 8. Bc4 {[%emt 0:04:21]} a6 {[%emt 0:01:23]} 9. a4 {[%emt 0:00:38]} d5 {[%emt 0:03:56]} 10. Ba2 {[%emt 0:02:18]} c4 {[%emt 0:01:04]} 11. O-O {[%emt 0:06:02]} b5 {[%emt 0:01:22]} 12. b3 {[%emt 0:01:31]} Nb6 {[%emt 0:09:38]} 13. Bb1 {[%emt 0:03:34]} cxb3 {[%emt 0:06:13]} 14. axb5 $1 {[%emt 0:00:58]} Bd7 $16 {[%emt 0:10:07]} 15. Bd3 {[%emt 0:02:16]} ({Viel schlechter ist} 15. Nxb3 $6 Bxb5 16. Bd3 Ne4 $11) (15. bxa6 $16 b2 16. Ra2) 15... b2 {[%emt 0:05:13]} 16. Ra2 {[%emt 0:06:42]} axb5 {[%emt 0:02:07]} 17. Rxb2 {[%emt 0:00:25]} Na4 {[%emt 0:03:13]} 18. Rb3 {[%emt 0:06:25]} Qa5 {[%emt 0:01:20]} 19. Qa1 {[%emt 0:02:24]} Rfc8 {[%emt 0:01:42]} 20. Rc1 {[%emt 0:02:02]} Ne8 {[%emt 0:11:59]} 21. e4 {[%emt 0:17:22]} Nc7 {[%emt 0:07:28]} 22. Bh2 {[%emt 0:08:35]} e6 {[%emt 0:03:14]} 23. Qa3 {[%emt 0:07:16]} Bf8 {[%emt 0:03:14]} 24. Bd6 {[%emt 0:01:00]} Bh6 {[%emt 0:05:44]} 25. Rcb1 {[%emt 0:08:21]} Qb6 {[%emt 0:03:50]} 26. Bxc7 {[%emt 0:10:51]} Qxc7 {[%emt 0:01:32]} 27. Qe7 {[%emt 0:04:16]} Nxc3 {[%emt 0:02:28]} 28. Re1 {[%emt 0:02:05]} Ra2 {[%emt 0:04:49]} 29. Rxc3 {[%emt 0:02:03]} Qxc3 {[%emt 0:00:42]} 30. Qxd7 {[%emt 0:00:04]} Bxd2 {[%emt 0:01:31]} 31. Nxd2 {[%emt 0:00:58]} Rxd2 {[%emt 0:00:34]} 32. Bxb5 {[%emt 0:00:39]} Rxd4 {[%emt 0:01:09]} 33. Re3 {[%emt 0:00:30]} Rd1+ {[%emt 0:01:40]} 34. Kh2 {[%emt 0:00:21]} Qe5+ {[%emt 0:00:39]} 35. g3 {[%emt 0:00:34]} Rcc1 {[%emt 0:00:44]} 36. Qe8+ {[%emt 0:00:45]} Kg7 {[%emt 0:00:13]} 37. exd5 {[%emt 0:00:23]} Qxd5 {[%emt 0:00:50]} 38. Be2 {[%emt 0:00:42]} Rh1# {[%emt 0:00:24]} 0-1